[Event "*** SCC Grand Prix: Titled Tuesday Blitz"]
[Site "Chess.com"]
[Date "2020.10.06"]
[Round "9"]
[White "kreonx"]
[Black "JoliyRoger"]
[Result "0-1"]
[WhiteElo "2354"]
[BlackElo "2467"]
[TimeControl "180+1"]
[EndTime "11:46:20 PDT"]
[Termination "JoliyRoger won by checkmate"]

1. e4 {[%clk 0:03:00.9]} 1... c6 {[%clk 0:02:59.5]} 2. d4 {[%clk 0:02:59.9]}
2... d5 {[%clk 0:03:00.4]} 3. e5 {[%clk 0:03:00.4]} 3... Bf5 {[%clk 0:02:59.4]}
4. Nf3 {[%clk 0:03:00.5]} 4... e6 {[%clk 0:02:59.1]} 5. Be2 {[%clk 0:03:00.9]}
5... Nd7 {[%clk 0:02:59.4]} 6. O-O {[%clk 0:03:01.1]} 6... Be7 {[%clk
0:03:00.3]} 7. Nbd2 {[%clk 0:03:01.2]} 7... Bg6 {[%clk 0:03:00.8]} 8. Nb3 {[%clk
0:02:56.4]} 8... Nh6 {[%clk 0:03:01]} 9. Bxh6 {[%clk 0:02:41.4]} 9... gxh6
{[%clk 0:03:00.7]} 10. c4 {[%clk 0:02:42]} 10... O-O {[%clk 0:02:59.6]} 11. Qd2
{[%clk 0:02:39]} 11... Kg7 {[%clk 0:02:59.7]} 12. cxd5 {[%clk 0:02:37]} 12...
cxd5 {[%clk 0:02:58]} 13. Rac1 {[%clk 0:02:35.3]} 13... Qb6 {[%clk 0:02:55.2]}
14. Bd3 {[%clk 0:02:29]} 14... a5 {[%clk 0:02:48.3]} 15. Bxg6 {[%clk 0:02:26.8]}
15... hxg6 {[%clk 0:02:46.5]} 16. Qe3 {[%clk 0:02:13.8]} 16... Rac8 {[%clk
0:02:33.6]} 17. Rxc8 {[%clk 0:02:11.2]} 17... Rxc8 {[%clk 0:02:31.2]} 18. Rc1
{[%clk 0:02:11.6]} 18... Rc4 {[%clk 0:02:16.4]} 19. Qe1 {[%clk 0:01:46.7]} 19...
a4 {[%clk 0:02:07]} 20. Nbd2 {[%clk 0:01:46.7]} 20... Rc6 {[%clk 0:01:43]} 21.
Rxc6 {[%clk 0:01:39.2]} 21... bxc6 {[%clk 0:01:43.3]} 22. b3 {[%clk 0:01:29.2]}
22... a3 {[%clk 0:01:26.9]} 23. Qc1 {[%clk 0:01:23.3]} 23... g5 {[%clk
0:01:20.2]} 24. h3 {[%clk 0:01:19.1]} 24... Bb4 {[%clk 0:01:11]} 25. Nb1 {[%clk
0:01:08.8]} 25... Qa6 {[%clk 0:01:06.3]} 26. Qd1 {[%clk 0:00:45]} 26... c5
{[%clk 0:00:57.8]} 27. h4 {[%clk 0:00:38.3]} 27... g4 {[%clk 0:00:56.1]} 28. Ne1
{[%clk 0:00:24.5]} 28... f5 {[%clk 0:00:41]} 29. exf6+ {[%clk 0:00:21.7]} 29...
Nxf6 {[%clk 0:00:41.5]} 30. Nd3 {[%clk 0:00:20.5]} 30... Qd6 {[%clk 0:00:35.6]}
31. dxc5 {[%clk 0:00:18.8]} 31... Bxc5 {[%clk 0:00:35.6]} 32. Qc1 {[%clk
0:00:13.5]} 32... Bb6 {[%clk 0:00:25.7]} 33. Nc3 {[%clk 0:00:12.7]} 33... g3
{[%clk 0:00:23.4]} 34. Kf1 {[%clk 0:00:11.5]} 34... gxf2 {[%clk 0:00:22.6]} 35.
Nxf2 {[%clk 0:00:12.4]} 35... Qb4 {[%clk 0:00:21.2]} 36. Ne2 {[%clk 0:00:11.7]}
36... Qxh4 {[%clk 0:00:20.5]} 37. g3 {[%clk 0:00:11]} 37... Qh2 {[%clk
0:00:19.5]} 38. Qc6 {[%clk 0:00:09.5]} 38... Qxf2# {[%clk 0:00:18.5]} 0-1

[Event "*** SCC Grand Prix: Titled Tuesday Blitz"]
[Site "Chess.com"]
[Date "2020.10.06"]
[Round "9"]
[White "Vuk2000"]
[Black "alejanchess73"]
[Result "1-0"]
[WhiteElo "2672"]
[BlackElo "2428"]
[TimeControl "180+1"]
[EndTime "11:46:23 PDT"]
[Termination "Vuk2000 won on time"]

1. d4 {[%clk 0:03:00.9]} 1... Nf6 {[%clk 0:02:59.4]} 2. Bg5 {[%clk 0:03:01.4]}
2... e6 {[%clk 0:02:57.3]} 3. e4 {[%clk 0:03:01.3]} 3... h6 {[%clk 0:02:57.6]}
4. Bxf6 {[%clk 0:03:01.9]} 4... Qxf6 {[%clk 0:02:57.1]} 5. c3 {[%clk 0:03:02.8]}
5... d6 {[%clk 0:02:54.4]} 6. Bd3 {[%clk 0:03:03.3]} 6... Nc6 {[%clk 0:02:54.3]}
7. Ne2 {[%clk 0:03:03.9]} 7... Bd7 {[%clk 0:02:54.2]} 8. O-O {[%clk 0:03:04.5]}
8... O-O-O {[%clk 0:02:54]} 9. f4 {[%clk 0:03:05.1]} 9... g6 {[%clk 0:02:49.3]}
10. Nd2 {[%clk 0:03:01.3]} 10... Bg7 {[%clk 0:02:47.6]} 11. b4 {[%clk
0:02:55.5]} 11... d5 {[%clk 0:02:40.5]} 12. e5 {[%clk 0:02:49.1]} 12... Qe7
{[%clk 0:02:37.4]} 13. a4 {[%clk 0:02:49.8]} 13... Rdg8 {[%clk 0:02:30.8]} 14.
a5 {[%clk 0:02:49.5]} 14... Nb8 {[%clk 0:02:29.3]} 15. b5 {[%clk 0:02:48.9]}
15... f6 {[%clk 0:02:26.4]} 16. b6 {[%clk 0:02:41.6]} 16... a6 {[%clk
0:02:23.5]} 17. bxc7 {[%clk 0:02:39.8]} 17... Kxc7 {[%clk 0:02:23.7]} 18. Qb3
{[%clk 0:02:06.2]} 18... Bc6 {[%clk 0:02:21.7]} 19. c4 {[%clk 0:01:56.4]} 19...
g5 {[%clk 0:02:15]} 20. cxd5 {[%clk 0:01:48.6]} 20... Bxd5 {[%clk 0:02:14]} 21.
Qb6+ {[%clk 0:01:44.3]} 21... Kc8 {[%clk 0:02:13.4]} 22. Ne4 {[%clk 0:01:35.7]}
22... Bxe4 {[%clk 0:01:57.8]} 23. Bxe4 {[%clk 0:01:36.6]} 23... Qc7 {[%clk
0:01:41.1]} 24. Rfc1 {[%clk 0:01:30.8]} 24... Nc6 {[%clk 0:01:40.8]} 25. Qb3
{[%clk 0:00:27.9]} 25... Re8 {[%clk 0:01:29.8]} 26. Rxc6 {[%clk 0:00:23.5]}
26... bxc6 {[%clk 0:01:29.3]} 27. Rc1 {[%clk 0:00:24.2]} 27... Kd7 {[%clk
0:01:23.2]} 28. Bxc6+ {[%clk 0:00:23.1]} 28... Qxc6 {[%clk 0:01:23.6]} 29. Rxc6
{[%clk 0:00:23.8]} 29... Kxc6 {[%clk 0:01:24.2]} 30. Qb6+ {[%clk 0:00:24.5]}
30... Kd5 {[%clk 0:01:24.8]} 31. Qb7+ {[%clk 0:00:24.9]} 31... Kc4 {[%clk
0:01:24.4]} 32. Qxg7 {[%clk 0:00:24.5]} 32... Kd3 {[%clk 0:01:24.9]} 33. Kf2
{[%clk 0:00:22.6]} 33... gxf4 {[%clk 0:01:24]} 34. Nxf4+ {[%clk 0:00:21.3]}
34... Kxd4 {[%clk 0:01:23.9]} 35. exf6 {[%clk 0:00:21.7]} 35... e5 {[%clk
0:01:23.6]} 36. f7 {[%clk 0:00:21.1]} 36... Ref8 {[%clk 0:01:22.8]} 37. Ne6+
{[%clk 0:00:21.1]} 1-0

[Event "*** SCC Grand Prix: Titled Tuesday Blitz"]
[Site "Chess.com"]
[Date "2020.10.06"]
[Round "9"]
[White "vrekhson"]
[Black "andrzej"]
[Result "1-0"]
[WhiteElo "2219"]
[BlackElo "2290"]
[TimeControl "180+1"]
[EndTime "11:46:24 PDT"]
[Termination "vrekhson won by checkmate"]

1. e4 {[%clk 0:03:00.9]} 1... c5 {[%clk 0:02:59.6]} 2. Nf3 {[%clk 0:03:00.5]}
2... e6 {[%clk 0:03:00.1]} 3. c3 {[%clk 0:03:00]} 3... d5 {[%clk 0:02:59.4]} 4.
exd5 {[%clk 0:03:00.3]} 4... Qxd5 {[%clk 0:03:00.2]} 5. d4 {[%clk 0:03:01.1]}
5... Nf6 {[%clk 0:02:59.2]} 6. Bd3 {[%clk 0:03:00.2]} 6... Nc6 {[%clk
0:02:56.8]} 7. O-O {[%clk 0:02:59.4]} 7... Be7 {[%clk 0:02:50.3]} 8. h3 {[%clk
0:02:57.5]} 8... O-O {[%clk 0:02:49.4]} 9. Be3 {[%clk 0:02:57.2]} 9... c4 {[%clk
0:02:41.5]} 10. Be2 {[%clk 0:02:50.5]} 10... Bd7 {[%clk 0:02:35.4]} 11. Nbd2
{[%clk 0:02:50.5]} 11... b5 {[%clk 0:02:35.6]} 12. a4 {[%clk 0:02:50.4]} 12...
a6 {[%clk 0:02:34.8]} 13. Nh2 {[%clk 0:02:43.5]} 13... e5 {[%clk 0:02:24.9]} 14.
Bf3 {[%clk 0:02:36.1]} 14... e4 {[%clk 0:02:24.4]} 15. Be2 {[%clk 0:02:34.6]}
15... Bd6 {[%clk 0:02:19.5]} 16. f3 {[%clk 0:02:30]} 16... Bxh2+ {[%clk
0:01:56.9]} 17. Kxh2 {[%clk 0:02:28.4]} 17... Qd6+ {[%clk 0:01:57.5]} 18. Kg1
{[%clk 0:02:19.5]} 18... exf3 {[%clk 0:01:48.4]} 19. Bxf3 {[%clk 0:02:17.4]}
19... Nd5 {[%clk 0:01:46]} 20. Bf2 {[%clk 0:01:52.6]} 20... Rae8 {[%clk
0:01:41.1]} 21. Ne4 {[%clk 0:01:49.1]} 21... Qg6 {[%clk 0:01:29.5]} 22. Nc5
{[%clk 0:01:37.9]} 22... Be6 {[%clk 0:01:15.5]} 23. axb5 {[%clk 0:01:37.3]}
23... axb5 {[%clk 0:01:12.9]} 24. Ra6 {[%clk 0:01:37.2]} 24... Nce7 {[%clk
0:01:08.1]} 25. Nd7 {[%clk 0:01:19]} 25... Nf4 {[%clk 0:01:01.7]} 26. Nxf8
{[%clk 0:01:18.7]} 26... Rxf8 {[%clk 0:00:58.6]} 27. Kh2 {[%clk 0:01:10]} 27...
Qg5 {[%clk 0:00:48.4]} 28. Bg3 {[%clk 0:00:59.9]} 28... Nd3 {[%clk 0:00:40.2]}
29. Be4 {[%clk 0:00:53.8]} 29... Bf5 {[%clk 0:00:35.9]} 30. Qf3 {[%clk
0:00:34.1]} 30... Bxe4 {[%clk 0:00:30.2]} 31. Qxe4 {[%clk 0:00:35]} 31... Ng6
{[%clk 0:00:25.5]} 32. b3 {[%clk 0:00:25.5]} 32... h5 {[%clk 0:00:24.1]} 33.
bxc4 {[%clk 0:00:23.9]} 33... bxc4 {[%clk 0:00:25]} 34. h4 {[%clk 0:00:22.2]}
34... Qd2 {[%clk 0:00:20.8]} 35. Rxg6 {[%clk 0:00:18.7]} 35... fxg6 {[%clk
0:00:17.4]} 36. Qe6+ {[%clk 0:00:18.6]} 36... Kh7 {[%clk 0:00:16.7]} 37. Rxf8
{[%clk 0:00:18.7]} 37... g5 {[%clk 0:00:08.2]} 38. Qf5+ {[%clk 0:00:14.3]} 38...
g6 {[%clk 0:00:06]} 39. Qf7+ {[%clk 0:00:13.5]} 39... Kh6 {[%clk 0:00:05.6]} 40.
Rh8# {[%clk 0:00:14.1]} 1-0

[Event "*** SCC Grand Prix: Titled Tuesday Blitz"]
[Site "Chess.com"]
[Date "2020.10.06"]
[Round "9"]
[White "ailime26"]
[Black "VladaSviridova"]
[Result "0-1"]
[WhiteElo "1862"]
[BlackElo "2246"]
[TimeControl "180+1"]
[EndTime "11:46:24 PDT"]
[Termination "VladaSviridova won on time"]

1. e4 {[%clk 0:02:49.2]} 1... e6 {[%clk 0:02:59.7]} 2. d4 {[%clk 0:02:28.1]}
2... d5 {[%clk 0:02:59.8]} 3. Nc3 {[%clk 0:02:20.3]} 3... Bb4 {[%clk 0:02:59.5]}
4. e5 {[%clk 0:02:11.8]} 4... c5 {[%clk 0:02:59.6]} 5. a3 {[%clk 0:01:59]} 5...
Bxc3+ {[%clk 0:02:59.7]} 6. bxc3 {[%clk 0:01:57.2]} 6... Ne7 {[%clk 0:03:00.4]}
7. f4 {[%clk 0:01:50.4]} 7... Nbc6 {[%clk 0:02:55.6]} 8. Nf3 {[%clk 0:01:48.8]}
8... Qc7 {[%clk 0:02:49.7]} 9. Be2 {[%clk 0:01:34.3]} 9... O-O {[%clk
0:02:32.5]} 10. O-O {[%clk 0:01:26.7]} 10... Na5 {[%clk 0:02:30]} 11. Nh4 {[%clk
0:01:12.8]} 11... Bd7 {[%clk 0:02:22.4]} 12. Bd3 {[%clk 0:01:06]} 12... cxd4
{[%clk 0:01:59.3]} 13. cxd4 {[%clk 0:01:02.9]} 13... Qc3 {[%clk 0:01:55.2]} 14.
Be3 {[%clk 0:00:58]} 14... Nc4 {[%clk 0:01:46.1]} 15. Bf2 {[%clk 0:00:54.3]}
15... h6 {[%clk 0:01:17.1]} 16. Kh1 {[%clk 0:00:29.4]} 16... Nb2 {[%clk
0:01:16.5]} 17. Qf3 {[%clk 0:00:24.7]} 17... Nxd3 {[%clk 0:01:15.9]} 18. cxd3
{[%clk 0:00:23.8]} 18... Bb5 {[%clk 0:01:14.6]} 19. Rfd1 {[%clk 0:00:22.2]}
19... Rac8 {[%clk 0:01:01.1]} 20. f5 {[%clk 0:00:18.4]} 20... exf5 {[%clk
0:00:58.3]} 21. Nxf5 {[%clk 0:00:17.1]} 21... Nxf5 {[%clk 0:00:56.3]} 22. Qxf5
{[%clk 0:00:17]} 22... Rc6 {[%clk 0:00:52.9]} 23. Be1 {[%clk 0:00:13.5]} 23...
Qxd4 {[%clk 0:00:51.3]} 24. Bf2 {[%clk 0:00:12.9]} 24... Qc3 {[%clk 0:00:47.6]}
25. d4 {[%clk 0:00:13.1]} 25... Ba4 {[%clk 0:00:46.5]} 26. Rf1 {[%clk
0:00:11.9]} 26... Bc2 {[%clk 0:00:45.4]} 27. Qg4 {[%clk 0:00:10.1]} 27... Be4
{[%clk 0:00:43.5]} 28. Bg1 {[%clk 0:00:09]} 28... Qc2 {[%clk 0:00:41]} 29. Rf2
{[%clk 0:00:07.9]} 29... Qc3 {[%clk 0:00:39.3]} 30. Raf1 {[%clk 0:00:07.3]}
30... Rg6 {[%clk 0:00:38.9]} 31. Qf4 {[%clk 0:00:05.6]} 31... Qxd4 {[%clk
0:00:35.6]} 32. Rf3 {[%clk 0:00:04.6]} 32... Qc4 {[%clk 0:00:34]} 33. Rg3 {[%clk
0:00:03.9]} 33... Qc2 {[%clk 0:00:32.5]} 34. Rxg6 {[%clk 0:00:03.5]} 34... Bxg6
{[%clk 0:00:30.8]} 35. Rf2 {[%clk 0:00:02]} 35... Qe4 {[%clk 0:00:29.6]} 36.
Qxe4 {[%clk 0:00:01.4]} 36... Bxe4 {[%clk 0:00:29.6]} 37. Rb2 {[%clk 0:00:01.4]}
37... b6 {[%clk 0:00:29.3]} 38. Bd4 {[%clk 0:00:01.1]} 38... Rc8 {[%clk
0:00:29.1]} 0-1

[Event "*** SCC Grand Prix: Titled Tuesday Blitz"]
[Site "Chess.com"]
[Date "2020.10.06"]
[Round "9"]
[White "Lion-Al-Messi"]
[Black "alexrustemov"]
[Result "1-0"]
[WhiteElo "2545"]
[BlackElo "2711"]
[TimeControl "180+1"]
[EndTime "11:46:26 PDT"]
[Termination "Lion-Al-Messi won on time"]

1. e4 {[%clk 0:03:00.9]} 1... e6 {[%clk 0:02:59.1]} 2. d4 {[%clk 0:02:59.9]}
2... d5 {[%clk 0:02:59.4]} 3. e5 {[%clk 0:02:59.3]} 3... c5 {[%clk 0:02:59.1]}
4. c3 {[%clk 0:02:59.6]} 4... Qb6 {[%clk 0:02:58.6]} 5. f4 {[%clk 0:02:59.1]}
5... cxd4 {[%clk 0:02:53.7]} 6. cxd4 {[%clk 0:02:59]} 6... Nh6 {[%clk
0:02:52.5]} 7. Nf3 {[%clk 0:02:55.9]} 7... Nc6 {[%clk 0:02:44.3]} 8. Bd3 {[%clk
0:02:55.8]} 8... Bd7 {[%clk 0:02:42.5]} 9. Bc2 {[%clk 0:02:50.5]} 9... Nb4
{[%clk 0:02:35.5]} 10. Be3 {[%clk 0:02:49.1]} 10... Nxc2+ {[%clk 0:02:33]} 11.
Qxc2 {[%clk 0:02:50]} 11... Qa6 {[%clk 0:02:22.2]} 12. Nc3 {[%clk 0:02:47.3]}
12... Rc8 {[%clk 0:02:17]} 13. Bf2 {[%clk 0:02:47.2]} 13... Bb4 {[%clk
0:02:11.6]} 14. h3 {[%clk 0:02:41.2]} 14... O-O {[%clk 0:02:00.2]} 15. g4 {[%clk
0:02:40.9]} 15... Bb5 {[%clk 0:01:43.9]} 16. f5 {[%clk 0:02:39.7]} 16... Bd3
{[%clk 0:01:37.9]} 17. Qd2 {[%clk 0:02:39]} 17... Be4 {[%clk 0:01:36.6]} 18. f6
{[%clk 0:02:34.5]} 18... Bxf3 {[%clk 0:01:23.4]} 19. Rg1 {[%clk 0:02:34.8]}
19... Bxc3 {[%clk 0:01:06.8]} 20. bxc3 {[%clk 0:02:29.8]} 20... Rxc3 {[%clk
0:01:06.4]} 21. Rg3 {[%clk 0:02:22.8]} 21... Rfc8 {[%clk 0:01:04.9]} 22. Rxf3
{[%clk 0:02:17.1]} 22... Rxf3 {[%clk 0:01:04]} 23. Qg5 {[%clk 0:02:17.2]} 23...
Qa5+ {[%clk 0:00:54.7]} 24. Kf1 {[%clk 0:02:14.9]} 24... Qb5+ {[%clk 0:00:23.1]}
25. Kg1 {[%clk 0:02:01.1]} 25... Kf8 {[%clk 0:00:22.8]} 26. Rc1 {[%clk
0:01:38.4]} 26... Rxc1+ {[%clk 0:00:19.9]} 27. Qxc1 {[%clk 0:01:39.3]} 27... Qc4
{[%clk 0:00:19.8]} 28. Qd2 {[%clk 0:01:15.4]} 28... gxf6 {[%clk 0:00:13.9]} 29.
Qxh6+ {[%clk 0:01:14.8]} 29... Ke7 {[%clk 0:00:13.6]} 30. exf6+ {[%clk
0:01:11.1]} 30... Ke8 {[%clk 0:00:12.5]} 31. Qg5 {[%clk 0:01:05.6]} 31... Qb4
{[%clk 0:00:11.8]} 32. Kg2 {[%clk 0:01:03.7]} 32... Rd3 {[%clk 0:00:10.4]} 33.
Qg8+ {[%clk 0:01:00.6]} 33... Qf8 {[%clk 0:00:10.4]} 34. Qxh7 {[%clk 0:01:00.8]}
34... Rd2 {[%clk 0:00:10.4]} 35. Qb1 {[%clk 0:00:59.5]} 35... Qd6 {[%clk
0:00:05.4]} 36. Qxb7 {[%clk 0:00:56.5]} 36... Rc2 {[%clk 0:00:02.1]} 37. Qa8+
{[%clk 0:00:54.5]} 37... Qd8 {[%clk 0:00:02.4]} 38. Qxd8+ {[%clk 0:00:47]} 38...
Kxd8 {[%clk 0:00:02.3]} 39. h4 {[%clk 0:00:46.8]} 39... Rxa2 {[%clk 0:00:02.6]}
40. h5 {[%clk 0:00:46.7]} 40... Ke8 {[%clk 0:00:03.2]} 41. h6 {[%clk 0:00:46.4]}
41... Kf8 {[%clk 0:00:04.1]} 42. h7 {[%clk 0:00:46.6]} 42... Ke8 {[%clk
0:00:04.2]} 43. h8=Q+ {[%clk 0:00:46.3]} 43... Kd7 {[%clk 0:00:05.1]} 44. Qf8
{[%clk 0:00:46.1]} 44... Kc6 {[%clk 0:00:06]} 45. Qxf7 {[%clk 0:00:45.7]} 45...
Kb5 {[%clk 0:00:06.9]} 46. Qxe6 {[%clk 0:00:45.7]} 46... Kc4 {[%clk 0:00:07.8]}
47. Qc6+ {[%clk 0:00:45.3]} 47... Kd3 {[%clk 0:00:08.7]} 48. Qxd5 {[%clk
0:00:45.5]} 1-0

[Event "*** SCC Grand Prix: Titled Tuesday Blitz"]
[Site "Chess.com"]
[Date "2020.10.06"]
[Round "9"]
[White "Vamostodorecto"]
[Black "Mr_Sinigami"]
[Result "0-1"]
[WhiteElo "2374"]
[BlackElo "2499"]
[TimeControl "180+1"]
[EndTime "11:46:27 PDT"]
[Termination "Mr_Sinigami won by checkmate"]

1. d4 {[%clk 0:03:00.9]} 1... Nf6 {[%clk 0:02:58.9]} 2. c4 {[%clk 0:03:01.8]}
2... c5 {[%clk 0:02:58.4]} 3. d5 {[%clk 0:03:00.6]} 3... b5 {[%clk 0:02:58.8]}
4. cxb5 {[%clk 0:03:01.5]} 4... a6 {[%clk 0:02:59.3]} 5. Nc3 {[%clk 0:03:02.1]}
5... g6 {[%clk 0:02:58.5]} 6. e4 {[%clk 0:03:03]} 6... d6 {[%clk 0:02:57.9]} 7.
Nf3 {[%clk 0:02:57.2]} 7... Bg7 {[%clk 0:02:57.9]} 8. a4 {[%clk 0:02:54.2]} 8...
O-O {[%clk 0:02:56]} 9. Be2 {[%clk 0:02:47.8]} 9... axb5 {[%clk 0:02:55.8]} 10.
Bxb5 {[%clk 0:02:48.7]} 10... Ne8 {[%clk 0:02:54.9]} 11. O-O {[%clk 0:02:48.2]}
11... Nc7 {[%clk 0:02:54.5]} 12. Bc4 {[%clk 0:02:47.8]} 12... Ba6 {[%clk
0:02:54]} 13. Qe2 {[%clk 0:02:47.4]} 13... Bxc4 {[%clk 0:02:53]} 14. Qxc4 {[%clk
0:02:48.3]} 14... Nba6 {[%clk 0:02:53.3]} 15. Bg5 {[%clk 0:02:41.4]} 15... Nb4
{[%clk 0:02:51.2]} 16. Rad1 {[%clk 0:02:40.2]} 16... Qd7 {[%clk 0:02:49.5]} 17.
e5 {[%clk 0:02:38.9]} 17... Nc2 {[%clk 0:02:20]} 18. Qh4 {[%clk 0:02:24.6]}
18... Rfe8 {[%clk 0:02:11.7]} 19. Rd2 {[%clk 0:02:12.2]} 19... Nd4 {[%clk
0:02:10.1]} 20. Nxd4 {[%clk 0:02:01.1]} 20... cxd4 {[%clk 0:02:10]} 21. Rxd4
{[%clk 0:01:59.7]} 21... Bxe5 {[%clk 0:02:09.4]} 22. Rd3 {[%clk 0:01:58.3]}
22... Bxc3 {[%clk 0:02:04.5]} 23. bxc3 {[%clk 0:01:53.5]} 23... Rxa4 {[%clk
0:02:03.6]} 24. Qh6 {[%clk 0:01:52.1]} 24... f6 {[%clk 0:01:23.1]} 25. Rh3
{[%clk 0:01:50.7]} 25... e6 {[%clk 0:01:23.1]} 26. Bxf6 {[%clk 0:01:25.8]} 26...
Nxd5 {[%clk 0:01:21.4]} 27. Bd4 {[%clk 0:01:25.9]} 27... e5 {[%clk 0:01:12]} 28.
Re1 {[%clk 0:01:11.3]} 28... Re7 {[%clk 0:00:57.6]} 29. Be3 {[%clk 0:01:04.3]}
29... Rf7 {[%clk 0:00:53.7]} 30. Bg5 {[%clk 0:01:02.5]} 30... Rc4 {[%clk
0:00:38.9]} 31. Rd3 {[%clk 0:01:01.9]} 31... Nxc3 {[%clk 0:00:36.8]} 32. Rxe5
{[%clk 0:01:01.7]} 32... Ne2+ {[%clk 0:00:28.1]} 33. Rxe2 {[%clk 0:01:00.6]}
33... Qb5 {[%clk 0:00:18]} 34. Rd1 {[%clk 0:00:46.6]} 34... Rg4 {[%clk
0:00:15.2]} 35. Rde1 {[%clk 0:00:34.5]} 35... Rf8 {[%clk 0:00:13.8]} 36. Bf6
{[%clk 0:00:25.3]} 36... Qb7 {[%clk 0:00:06.2]} 37. Re7 {[%clk 0:00:20.2]} 37...
Qxg2# {[%clk 0:00:05.6]} 0-1

[Event "*** SCC Grand Prix: Titled Tuesday Blitz"]
[Site "Chess.com"]
[Date "2020.10.06"]
[Round "9"]
[White "vladgoncharov"]
[Black "GelmanAlexander"]
[Result "1-0"]
[WhiteElo "2477"]
[BlackElo "2574"]
[TimeControl "180+1"]
[EndTime "11:46:30 PDT"]
[Termination "vladgoncharov won by resignation"]

1. d4 {[%clk 0:03:00.9]} 1... Nf6 {[%clk 0:02:59.6]} 2. c4 {[%clk 0:03:00.4]}
2... c5 {[%clk 0:02:59.8]} 3. d5 {[%clk 0:03:00.7]} 3... b5 {[%clk 0:03:00]} 4.
cxb5 {[%clk 0:03:01.3]} 4... a6 {[%clk 0:03:00.2]} 5. b6 {[%clk 0:03:02]} 5...
d6 {[%clk 0:02:57.1]} 6. Nc3 {[%clk 0:03:02.5]} 6... Nbd7 {[%clk 0:02:57]} 7. e4
{[%clk 0:03:02]} 7... Rb8 {[%clk 0:02:55.5]} 8. Nf3 {[%clk 0:02:57.7]} 8... g6
{[%clk 0:02:55.1]} 9. a4 {[%clk 0:02:53.9]} 9... Qxb6 {[%clk 0:02:30.6]} 10. h3
{[%clk 0:02:48.3]} 10... Bg7 {[%clk 0:02:30.3]} 11. Bd3 {[%clk 0:02:47]} 11...
O-O {[%clk 0:02:30.2]} 12. O-O {[%clk 0:02:46.7]} 12... Nh5 {[%clk 0:02:08.8]}
13. Qe2 {[%clk 0:02:41.9]} 13... Ne5 {[%clk 0:02:03.8]} 14. a5 {[%clk
0:02:16.1]} 14... Qb7 {[%clk 0:01:52.5]} 15. Nxe5 {[%clk 0:02:03]} 15... Bxe5
{[%clk 0:01:53.4]} 16. Qf3 {[%clk 0:01:59.4]} 16... f5 {[%clk 0:01:30]} 17. exf5
{[%clk 0:01:58.5]} 17... Bxf5 {[%clk 0:01:30.5]} 18. Bxf5 {[%clk 0:01:57.3]}
18... Rxf5 {[%clk 0:01:31.4]} 19. Qe4 {[%clk 0:01:54.1]} 19... Nf6 {[%clk
0:01:20.7]} 20. Qc4 {[%clk 0:01:49.3]} 20... Bxc3 {[%clk 0:01:11.2]} 21. bxc3
{[%clk 0:01:48.7]} 21... Nxd5 {[%clk 0:00:56.1]} 22. Bd2 {[%clk 0:01:47.6]}
22... e6 {[%clk 0:00:54.8]} 23. g4 {[%clk 0:01:33.7]} 23... Rf3 {[%clk
0:00:48.8]} 24. Rab1 {[%clk 0:01:32]} 24... Qxb1 {[%clk 0:00:26.7]} 25. Rxb1
{[%clk 0:01:30.1]} 25... Rxb1+ {[%clk 0:00:27.6]} 26. Kg2 {[%clk 0:01:30.4]}
26... Rf7 {[%clk 0:00:24.4]} 27. Qxa6 {[%clk 0:01:23.3]} 27... Rb2 {[%clk
0:00:18.8]} 28. Bh6 {[%clk 0:01:17.6]} 28... Rbxf2+ {[%clk 0:00:11.6]} 29. Kg3
{[%clk 0:01:17.4]} 29... R2f3+ {[%clk 0:00:11.7]} 30. Kh4 {[%clk 0:01:17.2]}
30... g5+ {[%clk 0:00:06.3]} 31. Kxg5 {[%clk 0:01:15.1]} 31... Ne7 {[%clk
0:00:03.2]} 32. Qa8+ {[%clk 0:01:09.6]} 32... Rf8 {[%clk 0:00:03.5]} 33. Bxf8
{[%clk 0:01:09.2]} 33... Rxf8 {[%clk 0:00:04.4]} 34. Qe4 {[%clk 0:01:03.5]}
34... Kf7 {[%clk 0:00:02]} 35. Qxh7+ {[%clk 0:00:57.7]} 35... Ke8 {[%clk
0:00:02.3]} 36. a6 {[%clk 0:00:56.5]} 36... Rg8+ {[%clk 0:00:02.8]} 37. Kh4
{[%clk 0:00:53.8]} 37... Kd7 {[%clk 0:00:03.4]} 38. a7 {[%clk 0:00:52.6]} 38...
Ra8 {[%clk 0:00:04.3]} 39. g5 {[%clk 0:00:44.3]} 39... Rxa7 {[%clk 0:00:05.2]}
40. g6 {[%clk 0:00:44.2]} 40... Kc6 {[%clk 0:00:03.2]} 41. g7 {[%clk 0:00:41.6]}
41... Nf5+ {[%clk 0:00:03.6]} 42. Qxf5 {[%clk 0:00:41.5]} 42... Rxg7 {[%clk
0:00:04.5]} 43. Qxe6 {[%clk 0:00:40]} 43... Rd7 {[%clk 0:00:02.8]} 44. c4 {[%clk
0:00:39.3]} 44... Rb7 {[%clk 0:00:02.1]} 45. Kg5 {[%clk 0:00:38.6]} 45... Rb4
{[%clk 0:00:03]} 46. h4 {[%clk 0:00:38.2]} 46... Rb1 {[%clk 0:00:03.5]} 47. Qc8+
{[%clk 0:00:37.5]} 47... Kb6 {[%clk 0:00:02.9]} 48. Qb8+ {[%clk 0:00:37.9]} 1-0

[Event "*** SCC Grand Prix: Titled Tuesday Blitz"]
[Site "Chess.com"]
[Date "2020.10.06"]
[Round "9"]
[White "Chessdude1987"]
[Black "CM_rui"]
[Result "1-0"]
[WhiteElo "2254"]
[BlackElo "2355"]
[TimeControl "180+1"]
[EndTime "11:46:32 PDT"]
[Termination "Chessdude1987 won by checkmate"]

1. e4 {[%clk 0:03:00.9]} 1... e5 {[%clk 0:02:59.6]} 2. f4 {[%clk 0:02:59.9]}
2... exf4 {[%clk 0:02:59]} 3. Bc4 {[%clk 0:02:59.9]} 3... d6 {[%clk 0:02:57.7]}
4. d4 {[%clk 0:02:48.9]} 4... Nf6 {[%clk 0:02:56.2]} 5. Nc3 {[%clk 0:02:46.9]}
5... Bg4 {[%clk 0:02:50]} 6. Nf3 {[%clk 0:02:42.6]} 6... Nc6 {[%clk 0:02:48.7]}
7. O-O {[%clk 0:02:37.8]} 7... Qd7 {[%clk 0:02:35.7]} 8. Bxf4 {[%clk 0:02:30.5]}
8... O-O-O {[%clk 0:02:35]} 9. b4 {[%clk 0:02:23.6]} 9... Nxb4 {[%clk
0:02:27.1]} 10. Rb1 {[%clk 0:02:23.3]} 10... d5 {[%clk 0:02:22.3]} 11. exd5
{[%clk 0:02:19]} 11... Nfxd5 {[%clk 0:02:22.1]} 12. Nxd5 {[%clk 0:02:10]} 12...
Nxd5 {[%clk 0:02:23]} 13. Bd2 {[%clk 0:01:34]} 13... Nb6 {[%clk 0:02:09.9]} 14.
Bd3 {[%clk 0:01:22]} 14... Bxf3 {[%clk 0:02:04.9]} 15. Qxf3 {[%clk 0:01:21.7]}
15... Qxd4+ {[%clk 0:01:54.1]} 16. Be3 {[%clk 0:01:21.9]} 16... Qc3 {[%clk
0:01:38.8]} 17. Rb3 {[%clk 0:01:05.6]} 17... Qa5 {[%clk 0:01:24]} 18. Be4 {[%clk
0:00:50.8]} 18... Qa6 {[%clk 0:01:04.7]} 19. a4 {[%clk 0:00:33.9]} 19... f6
{[%clk 0:00:25.5]} 20. a5 {[%clk 0:00:33.2]} 20... Qxa5 {[%clk 0:00:23.9]} 21.
Bxb7+ {[%clk 0:00:32.5]} 21... Kb8 {[%clk 0:00:24.5]} 22. c4 {[%clk 0:00:29.3]}
22... Bc5 {[%clk 0:00:22.4]} 23. Bxc5 {[%clk 0:00:12.8]} 23... Qxc5+ {[%clk
0:00:23.3]} 24. Kh1 {[%clk 0:00:12.7]} 24... Qxc4 {[%clk 0:00:23.2]} 25. Rfb1
{[%clk 0:00:07.2]} 25... Rhe8 {[%clk 0:00:18.7]} 26. Bc6 {[%clk 0:00:06.6]}
26... Re6 {[%clk 0:00:14.8]} 27. Bb5 {[%clk 0:00:05.6]} 27... Qc5 {[%clk
0:00:13.1]} 28. h3 {[%clk 0:00:05.4]} 28... g5 {[%clk 0:00:06.6]} 29. Ba6 {[%clk
0:00:05.4]} 29... c6 {[%clk 0:00:04]} 30. Rb5 {[%clk 0:00:04.9]} 30... Qd6
{[%clk 0:00:02.7]} 31. Rxb6+ {[%clk 0:00:02.6]} 31... axb6 {[%clk 0:00:02.6]}
32. Rxb6+ {[%clk 0:00:02.5]} 32... Ka7 {[%clk 0:00:03.3]} 33. Qb3 {[%clk
0:00:02.3]} 33... Rb8 {[%clk 0:00:02.1]} 34. Rb7+ {[%clk 0:00:01.3]} 34... Rxb7
{[%clk 0:00:02.3]} 35. Qxb7# {[%clk 0:00:01.2]} 1-0